Department family,Entity,Date,Expense Type,Expense area,Supplier,Transation number,Amount,Narrative
Department for Culture Media and Sport,Department for Culture Media and Sport,03/07/2017,Current Grants Private Sector,GIA Architecture+Heritage,Greenwich Foundation for the RN College,50003186,"80,666.00",PRNC-July 2017 Grant Payment
Department for Culture Media and Sport,Department for Culture Media and Sport,03/07/2017,Grant-in-Aid (DCMS NDPBs),GIA Arts bodies,Arts Council of England,50003195,"79,545,449.00",ACE GiA July 2017
Department for Culture Media and Sport,Department for Culture Media and Sport,03/07/2017,Grant-in-Aid (DCMS NDPBs),GIA British Film Institute,British Film Institute,50003196,"1,993,790.00",BFI GiA July 2017
Department for Culture Media and Sport,Department for Culture Media and Sport,03/07/2017,Grant-in-Aid (DCMS NDPBs),GIA Libraries bodies,British Library,50003197,"5,395,067.00",BL GiA July 2017
Department for Culture Media and Sport,Department for Culture Media and Sport,03/07/2017,Grant-in-Aid (DCMS NDPBs),GIA Museums & Galleries,British Museum,50003198,"3,171,000.00",BM GiA July 2017
Department for Culture Media and Sport,Department for Culture Media and Sport,03/07/2017,Grant-in-Aid (DCMS NDPBs),GIA Tourism bodies,VisitBritain,50003199,"4,750,000.00",VB GiA July 2017
Department for Culture Media and Sport,Department for Culture Media and Sport,03/07/2017,Grant-in-Aid (DCMS NDPBs),GIA Architecture+Heritage,Churches Conservation Trust,50003200,"212,204.00",CCT GiA July 2017
Department for Culture Media and Sport,Department for Culture Media and Sport,05/07/2017,Grant-in-Aid (DCMS NDPBs),GIA Architecture+Heritage,Historic England (GIA),50003201,"7,478,000.00",HE GiA July 2017
Department for Culture Media and Sport,Department for Culture Media and Sport,03/07/2017,Grant-in-Aid (DCMS NDPBs),GIA Museums & Galleries,Geffrye Museum,50003202,"212,166.00",GM GiA July 2017
Department for Culture Media and Sport,Department for Culture Media and Sport,03/07/2017,Grant-in-Aid (DCMS NDPBs),GIA Museums & Galleries,Horniman Museum,50003203,"127,785.00",HM GiA July 2017
Department for Culture Media and Sport,Department for Culture Media and Sport,03/07/2017,Grant-in-Aid (DCMS NDPBs),GIA Museums & Galleries,Imperial War Museum,50003205,"1,300,521.00",IWM GiA July 2017
Department for Culture Media and Sport,Department for Culture Media and Sport,05/07/2017,Grant-in-Aid (DCMS NDPBs),GIA Museums & Galleries,National Gallery,50003206,"2,435,293.00",NG GiA July 2017
Department for Culture Media and Sport,Department for Culture Media and Sport,05/07/2017,Grant-in-Aid (DCMS NDPBs),GIA Museums & Galleries,National Maritime Museum,50003207,"1,293,333.00",RMG GiA July 2017
Department for Culture Media and Sport,Department for Culture Media and Sport,03/07/2017,Grant-in-Aid (DCMS NDPBs),GIA Museums & Galleries,National Museums & Galleries Merseyside,50003208,"2,142,334.00",NML GiA July 2017
Department for Culture Media and Sport,Department for Culture Media and Sport,03/07/2017,Grant-in-Aid (DCMS NDPBs),GIA Museums & Galleries,National Portrait Gallery,50003209,"552,750.00",NPG GiA July 2017
Department for Culture Media and Sport,Department for Culture Media and Sport,03/07/2017,Grant-in-Aid (DCMS NDPBs),GIA Museums & Galleries,Natural History Museum,50003210,"3,484,583.00",NHM GiA July 2017
Department for Culture Media and Sport,Department for Culture Media and Sport,03/07/2017,Grant-in-Aid (DCMS NDPBs),GIA Architecture+Heritage,National Heritage Memorial Fund,50003211,"1,500,000.00",NHMF GiA July 2017
Department for Culture Media and Sport,Department for Culture Media and Sport,03/07/2017,Grant-in-Aid (DCMS NDPBs),OFCOM,OFCOM,50003212,"111,397.00",OfOrp GiA July 2017
Department for Culture Media and Sport,Department for Culture Media and Sport,03/07/2017,Grant-in-Aid (DCMS NDPBs),OFCOM,OFCOM,50003213,"4,161,664.00",OfSpMa GiA July 2017
Department for Culture Media and Sport,Department for Culture Media and Sport,03/07/2017,Grant-in-Aid (DCMS NDPBs),OFCOM,OFCOM,50003214,"9,207,390.00",OfUHF GiA July 2017
Department for Culture Media and Sport,Department for Culture Media and Sport,03/07/2017,Grant-in-Aid (DCMS NDPBs),GIA Museums & Galleries,The Royal Armouries,50003215,"589,715.00",RA GiA July 2017
Department for Culture Media and Sport,Department for Culture Media and Sport,03/07/2017,Grant-in-Aid (DCMS NDPBs),GIA S4C Welsh Fourth Channel,S4C-Sianel Pedwar Cymru-all inv inc. GIA,50003216,"554,000.00",S4C GiA July 2017
Department for Culture Media and Sport,Department for Culture Media and Sport,03/07/2017,Grant-in-Aid (DCMS NDPBs),GIA Museums & Galleries,Science Museum Group (ex-NMSI),50003217,"3,312,000.00",SMG GiA July 2017
Department for Culture Media and Sport,Department for Culture Media and Sport,03/07/2017,Grant-in-Aid (DCMS NDPBs),GIA Sports bodies,Sport Ground Safety Authority,50003218,"127,000.00",SGSA GiA July 2017
Department for Culture Media and Sport,Department for Culture Media and Sport,03/07/2017,Grant-in-Aid (DCMS NDPBs),GIA Museums & Galleries,Sir John Soane's Museum,50003219,"82,000.00",SJSM GiA July 2017
Department for Culture Media and Sport,Department for Culture Media and Sport,03/07/2017,Grant-in-Aid (DCMS NDPBs),GIA Sports bodies,Sport England,50003220,"9,000,000.00",SE GiA July 2017
Department for Culture Media and Sport,Department for Culture Media and Sport,05/07/2017,Grant-in-Aid (DCMS NDPBs),GIA Museums & Galleries,Tate Gallery,50003221,"3,172,167.00",TATE GiA July 2017
Department for Culture Media and Sport,Department for Culture Media and Sport,05/07/2017,Grant-in-Aid (DCMS NDPBs),GIA Sports bodies,United Kingdom Sports Council,50003222,"8,793,593.00",UKS GiA July 2017
Department for Culture Media and Sport,Department for Culture Media and Sport,03/07/2017,Grant-in-Aid (DCMS NDPBs),GIA Sports bodies,United Kingdom Anti Doping Ltd,50003223,"500,000.00",UKAD GiA July 2017
Department for Culture Media and Sport,Department for Culture Media and Sport,03/07/2017,Grant-in-Aid (DCMS NDPBs),GIA Museums & Galleries,Victoria & Albert Museum,50003224,"3,095,500.00",VA GiA July 2017
Department for Culture Media and Sport,Department for Culture Media and Sport,03/07/2017,Grant-in-Aid (DCMS NDPBs),GIA Museums & Galleries,Wallace Collection,50003225,"280,000.00",TWC GiA July 2017
Department for Culture Media and Sport,Department for Culture Media and Sport,05/07/2017,Grant-in-Aid (DCMS NDPBs),GIA Gambling + Lottery bodies,National Lottery Commission,50003226,"312,970.00",NLC GiA July 2017
Department for Culture Media and Sport,Department for Culture Media and Sport,04/07/2017,Current Grants Private Sector,PASO,The British Red Cross Society,50003244,"275,797.00",A1703 British Red Cross Q1 1718
Department for Culture Media and Sport,Department for Culture Media and Sport,05/07/2017,Current Grants Private Sector,Social Action,Community Organisers Ltd,50003252,"87,500.00",A1625 Community Organisers Q2 1718
Department for Culture Media and Sport,Department for Culture Media and Sport,14/07/2017,Current Grants Private Sector,Youth Policy & NCS,Big Lottery Fund- Youth Investment Fund,50003255,"32,184.00",A1616 BLF-Youth Invest Fund Admin Q11718
Department for Culture Media and Sport,Department for Culture Media and Sport,07/07/2017,Current Grants Private Sector,Governm Inclusive Economy Unit,Big Lottery Fund - Life Chances Fund,50003256,"547,438.00",A1622 BLF - LFC Dev Grant Q4 1718
Department for Culture Media and Sport,Department for Culture Media and Sport,07/07/2017,Capital Grant Private Sector,PASO,SWIFT Medics,50003257,"95,065.00",A1707 Swift Medics (capital) Q2 1718
Department for Culture Media and Sport,Department for Culture Media and Sport,07/07/2017,Current Grants Private Sector,LPW and Ecclesiastical,Topmark Claims Management Ltd,50003258,"718,757.49",Funding for LPW 280617_060717
Department for Culture Media and Sport,Department for Culture Media and Sport,07/07/2017,Management of Grant Programmes,LPW and Ecclesiastical,Topmark Claims Mgt (Fees A/C),50003260,"61,375.00",LPW Admin fees May 2017
Department for Culture Media and Sport,Department for Culture Media and Sport,07/07/2017,Management of Grant Programmes,LPW and Ecclesiastical,Topmark Claims Mgt (Fees A/C),50003260,264,LPW Admin fees May 2017
Department for Culture Media and Sport,Department for Culture Media and Sport,11/07/2017,Capital Grants to LAs,Broadband UK Capital+Programme,East Riding of Yorkshire Council,50003261,"441,588.00",RUTWO EYRK C5 Q4 16-17
Department for Culture Media and Sport,Department for Culture Media and Sport,25/07/2017,Capital Grant Private Sector,Grant support to NFTS,National Film & Television School,50003262,"186,000.00",NFTS - July 2017 Grant payment
Department for Culture Media and Sport,Department for Culture Media and Sport,25/07/2017,Capital Grant Private Sector,Grant support to NFTS,National Film & Television School,50003262,"19,421.00",NFTS - July 2017 Grant payment
Department for Culture Media and Sport,Department for Culture Media and Sport,12/07/2017,Current Grants Private Sector,Social Action,Westbank Community Health and Care,50003264,"37,500.00",A1646 Westbank Q2 1718
Department for Culture Media and Sport,Department for Culture Media and Sport,12/07/2017,Grant to BBC:Home Broadcasting,Home Broadcasting:Grant to BBC,British Broadcasting Corporation,50003265,"249,968,351.00",BBC GIA PAYMENT JULY 2017
Department for Culture Media and Sport,Department for Culture Media and Sport,08/08/2017,Current Grants Private Sector,Youth Policy & NCS,Virgin Money Foundation,50003266,"175,127.00",A1539 VMF LIBOR Q2 1718
Department for Culture Media and Sport,Department for Culture Media and Sport,14/07/2017,Current Grants Private Sector,LPW and Ecclesiastical,Topmark Claims Management Ltd,50003269,"972,204.29",Funding for LPW 060717_120717
Department for Culture Media and Sport,Department for Culture Media and Sport,01/08/2017,Current Grants Private Sector,GIA Architecture+Heritage,Greenwich Foundation for the RN College,50003270,"80,666.00",ORNC- August 2017 Grant Payment
Department for Culture Media and Sport,Department for Culture Media and Sport,25/07/2017,Capital Grants to LAs,Broadband UK Capital+Programme,NYnet Ltd,50003272,"183,576.00",RUUSC-NYNT/July/C11/17-18
Department for Culture Media and Sport,Department for Culture Media and Sport,18/07/2017,Current Grants Private Sector,LPW and Ecclesiastical,The Archbishops Council,50003274,"61,110.80",CCB99/115 Westminster RC Cath Jul 17
Department for Culture Media and Sport,Department for Culture Media and Sport,18/07/2017,Current Grants Private Sector,LPW and Ecclesiastical,The Archbishops Council,50003275,"37,465.00",CCB40/001 Wakefield Cathedral July17
Department for Culture Media and Sport,Department for Culture Media and Sport,18/07/2017,Current Grants Private Sector,LPW and Ecclesiastical,The Archbishops Council,50003276,"33,375.50",CCB33/001 St Edmonsbury Cathedral Jul 17
Department for Culture Media and Sport,Department for Culture Media and Sport,18/07/2017,Current Grants Private Sector,LPW and Ecclesiastical,The Archbishops Council,50003277,"75,493.16",CCB38/001 Southwell Cathedral Jul 2017
Department for Culture Media and Sport,Department for Culture Media and Sport,18/07/2017,Current Grants Private Sector,LPW and Ecclesiastical,The Archbishops Council,50003278,"32,294.50",CCB35/001 Sheffield Cathedral July 2017
Department for Culture Media and Sport,Department for Culture Media and Sport,18/07/2017,Current Grants Private Sector,LPW and Ecclesiastical,The Archbishops Council,50003281,"66,387.70",CCB99/180 Plymouth Cathedral Jul 2017
Department for Culture Media and Sport,Department for Culture Media and Sport,18/07/2017,Current Grants Private Sector,LPW and Ecclesiastical,The Archbishops Council,50003282,"37,560.00",CCB46/001 Ripon Cathedral Jul 2017
Department for Culture Media and Sport,Department for Culture Media and Sport,18/07/2017,Current Grants Private Sector,LPW and Ecclesiastical,The Archbishops Council,50003283,"76,522.88",CCB12/001 Derby Cathedral Jul 2017
Department for Culture Media and Sport,Department for Culture Media and Sport,18/07/2017,Current Grants Private Sector,LPW and Ecclesiastical,The Archbishops Council,50003284,"47,100.39",CCB11/001 Coventry Cathedral Jul 2017
Department for Culture Media and Sport,Department for Culture Media and Sport,18/07/2017,Current Grants Private Sector,LPW and Ecclesiastical,The Archbishops Council,50003286,"26,475.77",CCB08/001 Chelmsford Cathedral Jul 2017
Department for Culture Media and Sport,Department for Culture Media and Sport,26/07/2017,Current Grants Private Sector,PASO,STOCKPORT WOMENS CENTRE,50003290,"38,319.15",A1594 GMWOA Tampon Tax Q2 1718
Department for Culture Media and Sport,Department for Culture Media and Sport,01/08/2017,Grant-in-Aid (DCMS NDPBs),GIA Arts bodies,Arts Council of England,50003292,"25,625,861.00",ACE GiA August 2017
Department for Culture Media and Sport,Department for Culture Media and Sport,01/08/2017,Grant-in-Aid (DCMS NDPBs),GIA British Film Institute,British Film Institute,50003293,"2,729,337.00",BFI GiA August 2017
Department for Culture Media and Sport,Department for Culture Media and Sport,01/08/2017,Grant-in-Aid (DCMS NDPBs),GIA Libraries bodies,British Library,50003294,"3,037,863.00",BL GiA August 2017
Department for Culture Media and Sport,Department for Culture Media and Sport,01/08/2017,Grant-in-Aid (DCMS NDPBs),GIA Museums & Galleries,British Museum,50003295,"3,086,000.00",BM GiA August 2017
Department for Culture Media and Sport,Department for Culture Media and Sport,01/08/2017,Grant-in-Aid (DCMS NDPBs),GIA Tourism bodies,VisitBritain,50003296,"3,500,000.00",VB GiA August 2017
Department for Culture Media and Sport,Department for Culture Media and Sport,01/08/2017,Grant-in-Aid (DCMS NDPBs),GIA Architecture+Heritage,Churches Conservation Trust,50003297,"300,000.00",CCT GiA August 2017
Department for Culture Media and Sport,Department for Culture Media and Sport,03/08/2017,Grant-in-Aid (DCMS NDPBs),GIA Architecture+Heritage,Historic England (GIA),50003298,"6,450,000.00",HE GiA August 2017
Department for Culture Media and Sport,Department for Culture Media and Sport,01/08/2017,Grant-in-Aid (DCMS NDPBs),GIA Museums & Galleries,Geffrye Museum,50003299,"124,666.00",GM GiA August 2017
Department for Culture Media and Sport,Department for Culture Media and Sport,01/08/2017,Grant-in-Aid (DCMS NDPBs),GIA Museums & Galleries,Horniman Museum,50003300,"315,664.00",HM GiA August 2017
Department for Culture Media and Sport,Department for Culture Media and Sport,01/08/2017,Grant-in-Aid (DCMS NDPBs),GIA Museums & Galleries,Imperial War Museum,50003302,"1,142,003.00",IWM GiA August 2017
Department for Culture Media and Sport,Department for Culture Media and Sport,03/08/2017,Grant-in-Aid (DCMS NDPBs),GIA Museums & Galleries,National Gallery,50003303,"2,393,742.00",NG GiA August 2017
Department for Culture Media and Sport,Department for Culture Media and Sport,03/08/2017,Grant-in-Aid (DCMS NDPBs),GIA Museums & Galleries,National Maritime Museum,50003304,"1,293,333.00",RMG GiA August 2017
Department for Culture Media and Sport,Department for Culture Media and Sport,01/08/2017,Grant-in-Aid (DCMS NDPBs),GIA Museums & Galleries,National Museums & Galleries Merseyside,50003305,"658,073.00",NML GiA August 2017
Department for Culture Media and Sport,Department for Culture Media and Sport,01/08/2017,Grant-in-Aid (DCMS NDPBs),GIA Museums & Galleries,National Portrait Gallery,50003306,"852,750.00",NPG GiA August 2017
Department for Culture Media and Sport,Department for Culture Media and Sport,01/08/2017,Grant-in-Aid (DCMS NDPBs),GIA Museums & Galleries,Natural History Museum,50003307,"3,484,583.00",NHM GiA August 2017
Department for Culture Media and Sport,Department for Culture Media and Sport,01/08/2017,Grant-in-Aid (DCMS NDPBs),OFCOM,OFCOM,50003308,"121,856.00",OfOrp GiA August 2017
Department for Culture Media and Sport,Department for Culture Media and Sport,01/08/2017,Grant-in-Aid (DCMS NDPBs),OFCOM,OFCOM,50003309,"3,900,781.00",OfSpMa GiA August 2017
Department for Culture Media and Sport,Department for Culture Media and Sport,01/08/2017,Grant-in-Aid (DCMS NDPBs),OFCOM,OFCOM,50003310,"4,725,239.00",OfUHF GiA August 2017
Department for Culture Media and Sport,Department for Culture Media and Sport,01/08/2017,Grant-in-Aid (DCMS NDPBs),GIA Museums & Galleries,The Royal Armouries,50003311,"498,799.00",RA GiA August 2017
Department for Culture Media and Sport,Department for Culture Media and Sport,01/08/2017,Grant-in-Aid (DCMS NDPBs),GIA S4C Welsh Fourth Channel,S4C-Sianel Pedwar Cymru-all inv inc. GIA,50003312,"554,000.00",S4C GiA August 2017
Department for Culture Media and Sport,Department for Culture Media and Sport,01/08/2017,Grant-in-Aid (DCMS NDPBs),GIA Museums & Galleries,Science Museum Group (ex-NMSI),50003313,"3,312,000.00",SMG GiA August 2017
Department for Culture Media and Sport,Department for Culture Media and Sport,01/08/2017,Grant-in-Aid (DCMS NDPBs),GIA Sports bodies,Sport Ground Safety Authority,50003314,"127,000.00",SGSA GiA August 2017
Department for Culture Media and Sport,Department for Culture Media and Sport,01/08/2017,Grant-in-Aid (DCMS NDPBs),GIA Museums & Galleries,Sir John Soane's Museum,50003315,"82,000.00",SJSM GiA August 2017
Department for Culture Media and Sport,Department for Culture Media and Sport,01/08/2017,Grant-in-Aid (DCMS NDPBs),GIA Sports bodies,Sport England,50003316,"4,000,000.00",SE GiA August 2017
Department for Culture Media and Sport,Department for Culture Media and Sport,03/08/2017,Grant-in-Aid (DCMS NDPBs),GIA Museums & Galleries,Tate Gallery,50003317,"3,172,166.00",TATE GiA August 2017
Department for Culture Media and Sport,Department for Culture Media and Sport,03/08/2017,Grant-in-Aid (DCMS NDPBs),GIA Sports bodies,United Kingdom Sports Council,50003318,"1,666,285.00",UKS GiA August 2017
Department for Culture Media and Sport,Department for Culture Media and Sport,01/08/2017,Grant-in-Aid (DCMS NDPBs),GIA Sports bodies,United Kingdom Anti Doping Ltd,50003319,"500,000.00",UKAD GiA August 2017
Department for Culture Media and Sport,Department for Culture Media and Sport,01/08/2017,Grant-in-Aid (DCMS NDPBs),GIA Museums & Galleries,Victoria & Albert Museum,50003320,"3,095,500.00",VA GiA August 2017
Department for Culture Media and Sport,Department for Culture Media and Sport,01/08/2017,Grant-in-Aid (DCMS NDPBs),GIA Museums & Galleries,Wallace Collection,50003321,"300,000.00",TWC GiA August 2017
Department for Culture Media and Sport,Department for Culture Media and Sport,03/08/2017,Grant-in-Aid (DCMS NDPBs),GIA Gambling + Lottery bodies,National Lottery Commission,50003322,"425,788.00",NLC GiA August 2017
Department for Culture Media and Sport,Department for Culture Media and Sport,11/08/2017,Grant to BBC:Home Broadcasting,Home Broadcasting:Grant to BBC,British Broadcasting Corporation,50003323,"249,968,351.00",BBC GiA August 2017 2017
Department for Culture Media and Sport,Department for Culture Media and Sport,27/07/2017,Current Grants Private Sector,DD2 Program,TECH CITY (UK) LTD,50003324,"219,826.00",June grant claim for TCUK
Department for Culture Media and Sport,Department for Culture Media and Sport,27/07/2017,Capital Grants to LAs,Broadband UK Capital+Programme,Leicestershire County Council,50003325,"793,981.00",RUTWO LEIC C2 Q4 16-17
Department for Culture Media and Sport,Department for Culture Media and Sport,27/07/2017,Capital Grants to LAs,Broadband UK Capital+Programme,West Yorkshire Combined Authority,50003326,"400,204.00",RUTWO NTHM C5 QCE 16-17
Department for Culture Media and Sport,Department for Culture Media and Sport,28/07/2017,Current Grants Private Sector,DD2 Program,TECH CITY (UK) LTD,50003327,"137,404.00",June grant claim for Tech North
Department for Culture Media and Sport,Department for Culture Media and Sport,27/07/2017,Capital Grants to LAs,Broadband UK Capital+Programme,Kent County Council,50003328,"1,068,578.00",RUTWO KENT C6 Q4 16-17
Department for Culture Media and Sport,Department for Culture Media and Sport,28/07/2017,Current Grants Private Sector,Broadband UK Capital+Programme,Digital Mobile Spectrum Limited,50003330,"44,843.00",Viewer Support /C1//17-18
Department for Culture Media and Sport,Department for Culture Media and Sport,28/07/2017,Current Grants Private Sector,LPW and Ecclesiastical,Topmark Claims Management Ltd,50003334,"357,758.02",Funding for LPW 200717_260717
Department for Culture Media and Sport,Department for Culture Media and Sport,01/08/2017,Current Grants Private Sector,PASO,Rosa,50003335,"32,917.00",A1610 ROSA TAMPON TAX Q2 1718
Department for Culture Media and Sport,Department for Culture Media and Sport,14/08/2017,Current Grants Private Sector,Youth Policy & NCS,BRITISH YOUTH COUNCIL,50003336,"56,941.75",A1450 British Youth Council Q2 1718
Department for Culture Media and Sport,Department for Culture Media and Sport,01/08/2017,Grant to OGD (Resource),OFCOM,OFCOM,50003337,"142,920.00",Ofcom Community Radio 1718 -1st Install
Department for Culture Media and Sport,Department for Culture Media and Sport,03/08/2017,Current Grants Private Sector,LPW and Ecclesiastical,The Archbishops Council,50003339,"101,446.38",CCB01/001 Wells Cathedral grant Aug 2nd
Department for Culture Media and Sport,Department for Culture Media and Sport,03/08/2017,Current Grants Private Sector,LPW and Ecclesiastical,The Archbishops Council,50003340,"26,390.77",CCB03/001 Blackburn Cathedral grant Aug
Department for Culture Media and Sport,Department for Culture Media and Sport,03/08/2017,Current Grants Private Sector,LPW and Ecclesiastical,The Archbishops Council,50003341,"35,633.39",CCB11/001 Coventry Cathedral grant Aug 1
Department for Culture Media and Sport,Department for Culture Media and Sport,03/08/2017,Current Grants Private Sector,LPW and Ecclesiastical,The Archbishops Council,50003342,"65,591.73",CCB12/001 Derby Cathedral grant Aug 17
Department for Culture Media and Sport,Department for Culture Media and Sport,03/08/2017,Current Grants Private Sector,LPW and Ecclesiastical,The Archbishops Council,50003345,"109,122.52",CCB99/180 Plymouth RC Cathedral grant
Department for Culture Media and Sport,Department for Culture Media and Sport,03/08/2017,Current Grants Private Sector,LPW and Ecclesiastical,The Archbishops Council,50003346,"30,731.72",CCB46/001 Ripon Cathedral grant Aug 17
Department for Culture Media and Sport,Department for Culture Media and Sport,03/08/2017,Current Grants Private Sector,LPW and Ecclesiastical,The Archbishops Council,50003350,"87,686.77",CCB38/001 Southwell Cathedral Aug 17
Department for Culture Media and Sport,Department for Culture Media and Sport,03/08/2017,Current Grants Private Sector,LPW and Ecclesiastical,The Archbishops Council,50003351,"71,465.30",CCB39/001 Truro Cathedral grant Aug 17
Department for Culture Media and Sport,Department for Culture Media and Sport,03/08/2017,Current Grants Private Sector,LPW and Ecclesiastical,The Archbishops Council,50003352,"42,500.00",CCB40/001 Wakefield Cathedral Aug17
Department for Culture Media and Sport,Department for Culture Media and Sport,03/08/2017,Current Grants Private Sector,LPW and Ecclesiastical,The Archbishops Council,50003353,"90,553.93",CCB41/001 Winchester Cathedral Aug 17
Department for Culture Media and Sport,Department for Culture Media and Sport,03/08/2017,Current Grants Private Sector,LPW and Ecclesiastical,The Archbishops Council,50003354,"65,233.20",CCB42/001 Worcester Cath rd 1 Aug 17
Department for Culture Media and Sport,Department for Culture Media and Sport,07/08/2017,Current Grants Private Sector,LPW and Ecclesiastical,Topmark Claims Management Ltd,50003357,"569,626.31",Funding for LPW 270717_020817
Department for Culture Media and Sport,Department for Culture Media and Sport,07/08/2017,Capital Grants to LAs,Broadband UK Capital+Programme,Northumberland County Council,50003359,"702,747.00",RUTWO NTHM C3 Q4 16-17
Department for Culture Media and Sport,Department for Culture Media and Sport,07/08/2017,Capital Grants to LAs,Broadband UK Capital+Programme,East Sussex County Council,50003360,"892,014.00",RUTWO ESUS C4 Q4 16-17
Department for Culture Media and Sport,Department for Culture Media and Sport,07/08/2017,Capital Grants to LAs,Broadband UK Capital+Programme,Cumbria County Council,50003361,"539,078.00",RUTWO CMBR C3 Q4 16-17
Department for Culture Media and Sport,Department for Culture Media and Sport,10/08/2017,Current Grants Private Sector,Media - Programme Costs,Multiplex Broadcasting Services NI Ltd,50003364,"48,810.12",Grant Claim for NI Multiplex Programme
Department for Culture Media and Sport,Department for Culture Media and Sport,10/08/2017,Capital Grants to LAs,Broadband UK Capital+Programme,Cornwall Council,50003365,"400,992.00",RUTWO CORN C3 Q3 16-17
Department for Culture Media and Sport,Department for Culture Media and Sport,10/08/2017,Capital Grants to LAs,Broadband UK Capital+Programme,Shropshire Council,50003366,"57,334.00",RUTWO SHRP C2 Q4 16-17
Department for Culture Media and Sport,Department for Culture Media and Sport,10/08/2017,Capital Grants to LAs,Broadband UK Capital+Programme,Nottinghamshire County Council,50003367,"905,160.00",RUTWO NOTT C3 Q4 16-17
Department for Culture Media and Sport,Department for Culture Media and Sport,10/08/2017,Capital Grants to LAs,Broadband UK Capital+Programme,Cornwall Council,50003368,"969,902.00",RUTWO CORN C4 Q4 16-17
Department for Culture Media and Sport,Department for Culture Media and Sport,16/08/2017,Payments under GIS Indemnity,Museums+Cultural PropertyProgs,Burges Salmon LLP,50003369,"4,200,000.00",GIS LOSS OF ZOFFANY PAINTING
Department for Culture Media and Sport,Department for Culture Media and Sport,14/08/2017,Current Grants Private Sector,LPW and Ecclesiastical,Topmark Claims Management Ltd,50003370,"931,771.32",Funding for LPW020817_090817
Department for Culture Media and Sport,Department for Culture Media and Sport,17/08/2017,Capital Grants to LAs,Broadband UK Capital+Programme,NYnet Ltd,50003376,"122,223.00",RUUSC NYNT AUG C12 17-18
Department for Culture Media and Sport,Department for Culture Media and Sport,18/08/2017,Current Grants Private Sector,PASO,Public Service Broadcasting Trust,50003377,"82,700.00",A1661 Fixers (Public Service Broadcasting Trust)
1,,,,,,,,
